Cogmind - Beta 13 @@@ ROGUE MODE // 2024.04.11 @ 23:32:30 Player: Arianne Result: Destroyed by G-47 Trooper with Particle Gun Performance ------------- Evolutions (2) 1000 Regions Visited (3) 600 Robots Destroyed (38) 190 Value Destroyed (1013) 1013 Prototype IDs (9) 180 Alien Tech Used (0) 0 Bonus (0) 0 TOTAL SCORE: 2983 Bonus ------- None Cogmind --------- Core Integrity 0/550 Matter 300/300 Energy 99/100 System Corruption 25% Temperature Cool (9) Movement Core (50) Location -8/Materials Parts ------- > --- POWER (3) -------- (None) > --- PROPULSION (2) --- (None) > --- UTILITY (4) ------ (None) > --- WEAPON (2) ------- (None) > --- INVENTORY (5) ---- (None) Peak State ------------ > --- POWER ------------ Light Ion Engine Heavy Ion Engine > --- PROPULSION ------- Aluminum Leg Aluminum Leg > --- UTILITY ---------- Visual Processing Unit Signal Interpreter Shield Generator Shield Generator > --- WEAPON ----------- Improved Light Cannon Improved Light Cannon > --- INVENTORY -------- Improved Light Cannon [Rating: 17] Favorites ----------- Power Ion Engine Engine Ion Engine Propulsion Aluminum Leg Leg Aluminum Leg Utility Signal Interpreter Device Shield Generator Processor Signal Interpreter Protection Light Armor Plating Weapon Assault Rifle Energy Gun Small Laser Ballistic Gun Assault Rifle Ballistic Cannon Improved Light Cannon Launcher Grenade Launcher Build | -11 -10 -9 -8 ------- Run | Yrd Mat Mat Mat Slots Evolved 4 | . . 2 2 Power 2 | . . . 2 Propulsion . | . . . . Utility 2 | . . 2 . Weapon . | . . . . Parts Attached 39 | 5 8 20 6 Power 5 | 1 1 2 1 Engine 5 | 1 1 2 1 Core . | . . . . Reactor . | . . . . Propulsion 16 | 2 4 7 3 Treads . | . . . . Leg 16 | 2 4 7 3 Wheel . | . . . . Hover . | . . . . Flight . | . . . . Utility 7 | . 2 5 . Device 2 | . . 2 . Storage . | . . . . Processor 4 | . 1 3 . Hackware . | . . . . Protection 1 | . 1 . . Artifact . | . . . . Weapon 11 | 2 1 6 2 Energy Gun 1 | 1 . . . Energy Cannon . | . . . . Ballistic Gun 4 | 1 1 1 1 Ballistic Cannon 5 | . . 4 1 Launcher 1 | . . 1 . Special Weapon . | . . . . Impact Weapon . | . . . . Slashing Weapon . | . . . . Piercing Weapon . | . . . . Special Melee Weapon . | . . . . Unidentified Prototypes . | . . . . Parts Lost 22 | . . 9 13 Power 3 | . . 1 2 Propulsion 4 | . . 1 3 Utility 6 | . . 2 4 Weapon 9 | . . 5 4 Highest Loss Streak 11 | . . 4 11 To Critical Strikes . | . . . . Average Slot Usage (%) 89 | . 92 91 70 Engine 12 | . 14 9 16 Leg 24 | . 28 21 17 Device 3 | . . 9 3 Processor 15 | . 5 29 16 Protection 8 | . 14 . . Ballistic Gun 18 | . 27 6 . Ballistic Cannon 5 | . . 11 16 Naked Turns 8 | . . . 8 Heaviest Build 23 | 6 13 20 23 Greatest Support 25 | 20 20 20 25 Greatest Overweight (x) 1 | . . 1 1 Average Overweight (x) . | . . . . Largest Inventory Capacity 5 | 5 5 5 5 Average Capacity 5 | 5 5 5 5 Most Carried 5 | 2 5 5 3 Average Carried 3 | . 3 3 2 Final Capacity 5 | 5 5 5 5 Final Carried 5 | 2 5 2 . Class Distribution -------------------- 90% | Mutant 9% | Scavenger-Mutant Dominant Class ---------------- Mutant | -10/Materials Mutant | -9/Materials Mutant | -8/Materials Resources | -11 -10 -9 -8 ----------- Run | Yrd Mat Mat Mat Matter Collected 1020 | 250 264 303 203 Remotely . | . . . . Salvage Created 1010 | . 480 341 189 Parts 77 | . 42 33 2 Haulers Intercepted . | . . . . Recyclers Shooed 1 | . . . 1 Parts Field Recycled . | . . . . Retrieved Matter . | . . . . Parts Self-Destructed . | . . . . Prevented . | . . . . Kills | -11 -10 -9 -8 ------- Run | Yrd Mat Mat Mat Combat Hostiles Destroyed 35 | . 17 14 4 Guns 22 | . 17 3 2 Cannons 9 | . . 7 2 AOE 4 | . . 4 . Classes Destroyed 6 | . 3 2 1 Worker 2 | . . 2 . Watcher 1 | . 1 . . Swarmer 13 | . 9 4 . Grunt 20 | . 8 9 3 Sentry 1 | . . 1 . Hunter 1 | . . . 1 Best Kill Streak 4 | . 4 4 3 Combat Bots Only 4 | . 4 4 3 Max Kills in Single Turn 2 | . 2 2 1 Gunslinging 1 | . 1 . . Exploded 2 | . . 2 . Melee . | . . . . Uniques/NPCs Destroyed . | . . . . Combat | -11 -10 -9 -8 -------- Run | Yrd Mat Mat Mat Hostile Shots Fired 352 | . 83 138 131 Missed 89 | . 19 33 37 Damage Taken 3132 | . 581 1102 1449 Core 895 | . 86 255 554 Absorbed by Shields 165 | . . 128 37 Core Remaining (%) 67 | 100 65 36 . Volleys Fired 91 | . 39 39 13 Largest 2 | . 2 2 2 Hottest 78 | . 40 78 78 Shots Fired 160 | . 78 59 23 Gun 107 | . 78 21 8 Cannon 49 | . . 34 15 Launcher 4 | . . 4 . Special . | . . . . Kinetic 156 | . 78 55 23 Thermal . | . . . . Explosive 4 | . . 4 . Electromagnetic . | . . . . Robot Hit Streak 10 | . 8 10 6 Robot Miss Streak 7 | . 7 3 4 Penetration Max . | . . . . Secondary Targets 4 | . 4 . . Max Gunslinging Chain 1 | . 1 . . Shots Hit Robots 93 | . 39 41 13 Core Hits 54 | . 25 19 10 Critical Kills 1 | . . . 1 Critical Parts Destroyed . | . . . . Critical Strikes 3 | . . 2 1 Destroy 1 | . . . 1 Blast 2 | . . 2 . Melee Attacks . | . . . . Impact . | . . . . Slashing . | . . . . Piercing . | . . . . Sneak Attacks . | . . . . Combat Hostiles . | . . . . Follow-up Attacks . | . . . . Damage Inflicted 1682 | . 526 854 302 Guns 835 | . 526 169 140 Cannons 541 | . . 388 153 Explosions 295 | . . 295 . Melee . | . . . . Ramming 11 | . . 2 9 Kinetic 1376 | . 526 557 293 Thermal . | . . . . Explosive 295 | . . 295 . Electromagnetic . | . . . . Impact . | . . . . Slashing . | . . . . Piercing . | . . . . Highest Corruption 25 | . . . 25 Average Corruption 16 | . . . 16 Corruption Purged . | . . . . Corruption Blocked . | . . . . Effects 1 | . . . 1 Message Errors 1 | . . . 1 Overload Shots . | . . . . Overflow Damage . | . . . . Projectiles . | . . . . Explosions . | . . . . Melee . | . . . . Knockbacks 8 | . . 5 3 Impact . | . . . . Kinetic 7 | . . 4 3 Secondary 1 | . . 1 . Self-Inflicted Damage 55 | . . 51 4 Shots 2 | . . 2 . Rammed 2 | . . . 2 Targets Rammed 6 | . 2 1 3 Kicked 4 | . 2 1 1 Crushed . | . . . . Highest Temperature 163 | . 9 70 163 Average Temperature 34 | . 4 23 61 Received Heat Transfer 1172 | . 138 404 630 Siege Activations . | . . . . Robots Corrupted . | . . . . Combat Hostiles . | . . . . Parts Fried . | . . . . Impact Corruptions . | . . . . Robots Melted . | . . . . Combat Hostiles . | . . . . Parts Melted . | . . . . Heat Transferred . | . . . . Parts Sabotaged . | . . . . Parts Stolen . | . . . . Parts Stripped . | . . . . Power Chain Reactions . | . . . . Alert | -11 -10 -9 -8 ------- Run | Yrd Mat Mat Mat Peak Influence 229 | . 229 180 146 Initial 47 | . . 47 15 Average 84 | . 97 73 69 Maximum Alert Level 1 | . 1 . . Low Security (%) 95 | 100 91 100 100 Level 1 4 | . 8 . . Level 2 . | . . . . Level 3 . | . . . . Level 4 . | . . . . Level 5 . | . . . . High Security . | . . . . Max Security . | . . . . Squads Dispatched 7 | . 2 2 3 Investigation 5 | . 2 2 1 Extermination . | . . . . Reinforcement 2 | . . . 2 Assault . | . . . . Garrison . | . . . . Intercept . | . . . . Searches Triggered . | . . . . Construction Impeded . | . . . . Haulers Reinforced . | . . . . Active Scanning Responses . | . . . . Cargo Convoy Interrupts . | . . . . Stealth | -11 -10 -9 -8 --------- Run | Yrd Mat Mat Mat Distress Signals 3 | . . 2 1 Communications Jammed . | . . . . Distress Signals . | . . . . Times Spotted 65 | . 29 21 15 Peak Tracking Total 12 | . 5 5 12 Tactical Retreats 1 | . 1 . . Traps | -11 -10 -9 -8 ------- Run | Yrd Mat Mat Mat Traps Triggered 4 | . 1 2 1 Indirectly . | . . . . Trap Hack Attempts . | . . . . Triggered . | . . . . Disarmed . | . . . . Reprogrammed . | . . . . Reused . | . . . . Traps Extracted . | . . . . Installed . | . . . . Triggered . | . . . . Machines | -11 -10 -9 -8 ---------- Run | Yrd Mat Mat Mat Machines Disabled 3 | . . 1 2 Max in Single Turn 1 | . . 1 1 Machines Repaired . | . . . . Machines Dismantled . | . . . . Machines Sabotaged . | . . . . Overloaded Fab Kills . | . . . . Hacking | -11 -10 -9 -8 --------- Run | Yrd Mat Mat Mat Machines Accessed 18 | . 11 6 1 Terminals 15 | . 8 6 1 Fabricators . | . . . . Repair Stations 1 | . 1 . . Recycling Units 2 | . 2 . . Scanalyzers . | . . . . Garrison Access . | . . . . Total Hacks 50 | . 28 17 5 Successful 21 | . 11 8 2 Failed 29 | . 17 9 3 Catastrophic 5 | . 3 2 . Database Lockouts . | . . . . Manual . | . . . . Terminals 43 | . 21 17 5 Fabricators . | . . . . Repair Stations 1 | . 1 . . Recycling Units 6 | . 6 . . Scanalyzers . | . . . . Garrison Access . | . . . . Terminal Hacks 18 | . 8 8 2 Record 1 | . 1 . . Prototype ID Bank 6 | . 2 4 . Branch Access Points 1 | . . 1 . Emergency Access Points 2 | . 1 1 . Repair Station Index 1 | . . 1 . Recycling Unit Index 1 | . . . 1 Alert Level 1 | . 1 . . Locate Traps 1 | . 1 . . Zone Layout 4 | . 2 1 1 Fabricator Hacks . | . . . . Repair Station Hacks 1 | . 1 . . Refit 1 | . 1 . . Recycling Unit Hacks 2 | . 2 . . Report Inventory 1 | . 1 . . Retrieve Components 1 | . 1 . . Scanalyzer . | . . . . Garrison Access Hacks . | . . . . Unauthorized Hacks . | . . . . Terminals . | . . . . Fabricators . | . . . . Repair Stations . | . . . . Recycling Units . | . . . . Scanalyzers . | . . . . Garrison Access . | . . . . Data Cores Recovered . | . . . . Used . | . . . . Hacking Detections 13 | . 8 4 1 Full Trace Events 3 | . 2 1 . Feedback Events . | . . . . Feedback Blocked . | . . . . Robot Schematics Acquired . | . . . . Robots Built . | . . . . Authchips . | . . . . Time . | . . . . Total Robot Build Rating . | . . . . Part Schematics Acquired . | . . . . Parts Built . | . . . . Authchips . | . . . . Time . | . . . . Total Part Build Rating . | . . . . Parts Repaired . | . . . . Time . | . . . . Parts Recycled . | . . . . Recycled Matter . | . . . . Retrieved Matter . | . . . . Retrieved Components 4 | . 4 . . Parts Scanalyzed . | . . . . Part Schematics Acquired . | . . . . Parts Damaged . | . . . . Bothacking | -11 -10 -9 -8 ------------ Run | Yrd Mat Mat Mat Used RIF Installer . | . . . . Robots Hacked . | . . . . Non-combat . | . . . . Combat . | . . . . Robot Hacks Applied . | . . . . Relay Couplers Released . | . . . . Fabnet Peak Effective % . | . . . . Robots Rewired . | . . . . Allies Hacked . | . . . . Hacks Repelled . | . . . . Allies | -11 -10 -9 -8 -------- Run | Yrd Mat Mat Mat Total Allies . | . . . . Largest Group . | . . . . Highest-Rated Group . | . . . . Highest-Rated Ally . | . . . . Total Orders . | . . . . Ally Attacks . | . . . . Total Damage . | . . . . Kills . | . . . . Allies Corrupted . | . . . . Allies Melted . | . . . . Intel | -11 -10 -9 -8 ------- Run | Yrd Mat Mat Mat Robot Analysis Total . | . . . . Derelict Logs Recovered . | . . . . Drone Launches . | . . . . Drone Recoveries . | . . . . Exploration | -11 -10 -9 -8 ------------- Run | Yrd Mat Mat Mat Turns Passed 3596 | 70 1961 1240 325 Spaces Moved 2550 | 55 1461 848 186 Core 17 | 7 . . 10 Treads . | . . . . Legs 2533 | 48 1461 848 176 Wheels . | . . . . Hover . | . . . . Flight . | . . . . Fastest Speed 50 | 50 120 120 50 Average Speed 120 | 111 120 121 128 Slowest Speed 190 | 120 120 190 190 Overloaded Moves . | . . . . Propulsion Burnouts . | . . . . Robots Hopped . | . . . . Cave-ins Triggered . | . . . . Exploration Rate (%) 41 | 4 98 47 16 Regions Visited 3 Branch Regions . Pre-discovered Areas . | . . . . Known Exits Taken 2 | . 1 1 . Unknown Exits Taken 1 | 1 . . . Scrap Searched . | . . . . Spaces Dug . | . . . . Terrain Destroyed 29 | . . 29 . Melee . | . . . . Projectile 3 | . . 3 . AOE 26 | . . 26 . Terrain Rammed . | . . . . Walls Destroyed . | . . . . Machines Disabled . | . . . . Actions | -11 -10 -9 -8 --------- Run | Yrd Mat Mat Mat Total 2903 | 61 1594 1001 247 Wait 188 | . 68 82 38 Move 2547 | 54 1460 847 186 Hop . | . . . . Pick Up 17 | 2 7 7 1 Fast Attach 9 | 5 . 4 . Attach 16 | . 2 10 4 Detach 1 | . 1 . . Swap 14 | . 6 6 2 Drop 14 | . 9 5 . Fire 91 | . 39 39 13 Melee . | . . . . Ram 2 | . . . 2 Kick 4 | . 2 1 1 Crush . | . . . . Escape Stasis . | . . . . Rewire . | . . . . Trap . | . . . . Miscellaneous . | . . . . Route ------- -11/Scrapyard -10/Materials (discovered 5 exits: *Mat x3 / *Min x2) -9/Materials (discovered 3 exits: *Mat / *Min x2) -8/Materials (discovered 1 exit: [*Sto]) History --------- Turn | Location | Event 6 | -11/Scrapyard | Discovered new exit (range 16) 71 | -11/Scrapyard | Entered Materials 309 | -10/Materials | Build established: Mutant 535 | -10/Materials | Discovered new exit (range 14) 641 | -10/Materials | Discovered new exit (range 5) 838 | -10/Materials | Discovered new exit (range 4) 1285 | -10/Materials | Identified exit to Mines 1434 | -10/Materials | Discovered new exit (range 14) 1528 | -10/Materials | Identified exit to Materials 1731 | -10/Materials | Discovered exit to Materials (range 15) 2032 | -10/Materials | Entered another Materials area 2032 | -9/Materials | Evolved 2 slots: Utility x2 2159 | -9/Materials | Lost 3 parts (1u2w) 2331 | -9/Materials | Discovered new exit (range 16) 2414 | -9/Materials | Identified exit to Mines 2779 | -9/Materials | Lost 4 parts (1n1u2w) 2932 | -9/Materials | Core integrity fell below 50% 3251 | -9/Materials | Discovered new exit (range 18) 3270 | -9/Materials | Identified exit to Materials 3272 | -9/Materials | Entered another Materials area 3272 | -8/Materials | Evolved 2 slots: Power x2 3273 | -8/Materials | Discovered new exit (range 7) 3575 | -8/Materials | System corruption reached 10% 3589 | -8/Materials | Core integrity fell below 50% 3594 | -8/Materials | Core integrity fell below 20% 3597 | -8/Materials | Destroyed by G-47 Trooper with Particle Gun Last Messages --------------- System corrupted by crushing effect (+3). Aluminum Leg destroyed. Hpw. Shotgun destroyed. System corrupted by crushing effect (+4). G-47 Trooper destroyed. Acquired 50 matter. |VX5